[Event "Masters Tournament (MTO)"]
[Site "Biel, Switzerland"]
[Date "2026.07.22"]
[Round "9.35"]
[White "Al Ibrahim, Abdulrahman"]
[Black "Tan, Jimmy"]
[Result "1-0"]
[TimeControl "100+30+30sec/move"]
[WhiteTitle "-"]
[BlackTitle "-"]
[WhiteFideId "10300503"]
[BlackFideId "129057499"]
[WhiteElo "2016"]
[BlackElo "1953"]

1. e4 {[%clk 01:40:56]} {[%emt 00:00:02]} d6 {[%clk 01:40:57]} {[%emt
00:00:06]} 2. d4 {[%clk 01:41:14]} {[%emt 00:00:10]} Nf6 {[%clk 01:41:23]}
{[%emt 00:00:04]} 3. Nc3 {[%clk 01:41:37]} {[%emt 00:00:07]} g6 {[%clk
01:41:45]} {[%emt 00:00:08]} 4. f4 {[%clk 01:40:49]} {[%emt 00:01:17]} Bg7
{[%clk 01:41:56]} {[%emt 00:00:21]} 5. Nf3 {[%clk 01:41:08]} {[%emt 00:00:10]}
c6 {[%clk 01:41:31]} {[%emt 00:00:56]} 6. Bd3 {[%clk 01:41:11]} {[%emt
00:00:27]} Bg4 {[%clk 01:38:48]} {[%emt 00:03:12]} 7. h3 {[%clk 01:40:50]}
{[%emt 00:00:51]} Bxf3 {[%clk 01:39:00]} {[%emt 00:00:19]} 8. Qxf3 {[%clk
01:41:09]} {[%emt 00:00:10]} Qa5 {[%clk 01:36:28]} {[%emt 00:03:02]} 9. O-O
{[%clk 01:40:59]} {[%emt 00:00:40]} O-O {[%clk 01:34:38]} {[%emt 00:02:20]} 10.
e5 {[%clk 01:28:40]} {[%emt 00:12:49]} Nfd7 {[%clk 01:31:49]} {[%emt 00:03:19]}
11. Ne4 {[%clk 01:25:12]} {[%emt 00:03:58]} c5 {[%clk 01:20:34]} {[%emt
00:11:45]} 12. c3 {[%clk 01:24:49]} {[%emt 00:00:54]} cxd4 {[%clk 01:11:04]}
{[%emt 00:10:00]} 13. cxd4 {[%clk 01:25:08]} {[%emt 00:00:10]} Nc6 {[%clk
01:10:08]} {[%emt 00:01:26]} 14. Be3 {[%clk 01:24:52]} {[%emt 00:00:46]} Nb4
{[%clk 01:00:31]} {[%emt 00:10:08]} 15. Bb1 {[%clk 01:18:02]} {[%emt 00:07:20]}
Nd5 {[%clk 00:46:14]} {[%emt 00:14:47]} 16. Bf2 {[%clk 01:12:20]} {[%emt
00:06:12]} Bh6 {[%clk 00:40:52]} {[%emt 00:05:51]} 17. Nc5 {[%clk 00:50:44]}
{[%emt 00:22:07]} dxc5 {[%clk 00:30:45]} {[%emt 00:10:36]} 18. Qxd5 {[%clk
00:50:58]} {[%emt 00:00:15]} Rad8 {[%clk 00:26:18]} {[%emt 00:04:59]} 19. Bh4
{[%clk 00:43:05]} {[%emt 00:08:22]} Nb6 {[%clk 00:12:17]} {[%emt 00:14:31]} 20.
Qxc5 {[%clk 00:42:19]} {[%emt 00:01:16]} Qd2 {[%clk 00:11:58]} {[%emt
00:00:50]} 21. Bxe7 {[%clk 00:16:59]} {[%emt 00:25:49]} Rc8 {[%clk 00:12:19]}
{[%emt 00:00:09]} 22. Qb4 {[%clk 00:17:09]} {[%emt 00:00:21]} Qe3+ {[%clk
00:12:08]} {[%emt 00:00:41]} 23. Kh1 {[%clk 00:17:25]} {[%emt 00:00:13]} Rfe8
{[%clk 00:10:58]} {[%emt 00:01:40]} 24. Bc5 {[%clk 00:17:29]} {[%emt 00:00:26]}
Nd5 {[%clk 00:09:12]} {[%emt 00:02:17]} 25. Qxb7 {[%clk 00:14:55]} {[%emt
00:03:03]} Nxf4 {[%clk 00:07:20]} {[%emt 00:02:22]} 26. Qf3 {[%clk 00:14:21]}
{[%emt 00:01:04]} Qd2 {[%clk 00:03:04]} {[%emt 00:04:47]} 27. Be4 {[%clk
00:13:58]} {[%emt 00:00:52]} Rb8 {[%clk 00:01:21]} {[%emt 00:02:14]} 28. b4
{[%clk 00:14:00]} {[%emt 00:00:28]} Rbc8 {[%clk 00:00:50]} {[%emt 00:01:01]} 29.
Rf2 {[%emt 00:01:03]} 1-0

[Event "Masters Tournament (MTO)"]
[Site "Biel, Switzerland"]
[Date "2026.07.22"]
[Round "9.36"]
[White "Von Burg, Carl Alexander"]
[Black "Stevens, Christian"]
[Result "1-0"]
[TimeControl "100+30+30sec/move"]
[WhiteTitle "-"]
[BlackTitle "-"]
[WhiteFideId "1352458"]
[BlackFideId "649090"]
[WhiteElo "1947"]
[BlackElo "2014"]

1. d4 {[%clk 01:40:50]} {[%emt 00:00:09]} c5 {[%clk 01:40:06]} {[%emt
00:00:56]} 2. c3 {[%clk 01:37:16]} {[%emt 00:04:04]} e6 {[%clk 01:39:03]}
{[%emt 00:01:33]} 3. Nf3 {[%clk 01:36:27]} {[%emt 00:01:18]} Nf6 {[%clk
01:36:24]} {[%emt 00:03:09]} 4. Bf4 {[%clk 01:32:34]} {[%emt 00:04:22]} Qb6
{[%clk 01:35:02]} {[%emt 00:01:53]} 5. Qb3 {[%clk 01:28:25]} {[%emt 00:04:35]}
Be7 {[%clk 01:16:49]} {[%emt 00:18:47]} 6. e3 {[%clk 01:22:04]} {[%emt
00:06:49]} Nc6 {[%clk 01:11:13]} {[%emt 00:06:08]} 7. h3 {[%clk 01:11:01]}
{[%emt 00:11:33]} O-O {[%clk 01:03:17]} {[%emt 00:08:26]} 8. Be2 {[%clk
01:10:14]} {[%emt 00:01:16]} Nd5 {[%clk 00:55:00]} {[%emt 00:08:48]} 9. Bh2
{[%clk 01:05:36]} {[%emt 00:05:08]} Qxb3 {[%clk 00:50:27]} {[%emt 00:05:04]} 10.
axb3 {[%clk 01:05:59]} {[%emt 00:00:06]} f5 {[%clk 00:50:41]} {[%emt 00:00:15]}
11. Nbd2 {[%clk 00:57:25]} {[%emt 00:09:04]} b6 {[%clk 00:45:28]} {[%emt
00:05:45]} 12. O-O {[%clk 00:49:27]} {[%emt 00:08:28]} Na5 {[%clk 00:39:34]}
{[%emt 00:06:23]} 13. dxc5 {[%clk 00:48:14]} {[%emt 00:01:43]} Bb7 {[%clk
00:38:29]} {[%emt 00:01:34]} 14. cxb6 {[%clk 00:43:18]} {[%emt 00:05:27]} axb6
{[%clk 00:38:52]} {[%emt 00:00:07]} 15. b4 {[%clk 00:42:26]} {[%emt 00:01:22]}
Nc6 {[%clk 00:38:59]} {[%emt 00:00:22]} 16. Bc4 {[%clk 00:39:32]} {[%emt
00:03:23]} Nf6 {[%clk 00:38:37]} {[%emt 00:00:54]} 17. Ne5 {[%clk 00:38:10]}
{[%emt 00:01:51]} Bd6 {[%clk 00:33:33]} {[%emt 00:05:35]} 18. Ndf3 {[%clk
00:30:54]} {[%emt 00:07:45]} Rfd8 {[%clk 00:25:41]} {[%emt 00:08:23]} 19. Rxa8
{[%clk 00:29:29]} {[%emt 00:01:55]} Bxa8 {[%clk 00:24:54]} {[%emt 00:01:17]} 20.
Rd1 {[%clk 00:27:37]} {[%emt 00:02:20]} Bxe5 {[%clk 00:21:29]} {[%emt
00:03:58]} 21. Nxe5 {[%clk 00:25:52]} {[%emt 00:02:14]} Nxe5 {[%clk 00:16:58]}
{[%emt 00:05:01]} 22. Bxe5 {[%clk 00:23:45]} {[%emt 00:02:36]} Nd5 {[%clk
00:15:53]} {[%emt 00:01:35]} 23. Ra1 {[%clk 00:22:27]} {[%emt 00:01:46]} Rc8
{[%clk 00:11:26]} {[%emt 00:05:00]} 24. Bd3 {[%clk 00:21:36]} {[%emt 00:01:20]}
Kf8 {[%clk 00:10:54]} {[%emt 00:01:03]} 25. Ra7 {[%clk 00:21:04]} {[%emt
00:01:01]} Ke7 {[%clk 00:11:18]} {[%emt 00:00:07]} 26. Bxg7 {[%clk 00:19:58]}
{[%emt 00:01:36]} Kd6 {[%clk 00:08:39]} {[%emt 00:03:09]} 27. e4 {[%clk
00:16:08]} {[%emt 00:04:19]} Nf4 {[%clk 00:08:35]} {[%emt 00:00:34]} 28. Bb5
{[%clk 00:15:39]} {[%emt 00:00:58]} Bc6 {[%clk 00:07:33]} {[%emt 00:01:33]} 29.
Bxc6 {[%clk 00:14:51]} {[%emt 00:01:19]} Kxc6 {[%clk 00:07:49]} {[%emt
00:00:14]} 30. Bh6 {[%clk 00:13:58]} {[%emt 00:01:17]} Nd3 {[%clk 00:08:02]}
{[%emt 00:00:21]} 31. exf5 {[%clk 00:13:51]} {[%emt 00:00:39]} exf5 {[%clk
00:08:25]} {[%emt 00:00:07]} 32. b5+ {[%clk 00:13:38]} {[%emt 00:00:43]} Kxb5
{[%clk 00:08:41]} {[%emt 00:00:14]} 33. Rxd7 {[%clk 00:13:34]} {[%emt
00:00:34]} Nxb2 {[%clk 00:09:01]} {[%emt 00:00:10]} 34. Rxh7 {[%clk 00:12:07]}
{[%emt 00:01:57]} Rxc3 {[%clk 00:09:21]} {[%emt 00:00:10]} 35. Rf7 {[%clk
00:11:24]} {[%emt 00:01:12]} Rc5 {[%clk 00:09:16]} {[%emt 00:00:36]} 36. h4
{[%clk 00:09:11]} {[%emt 00:02:41]} Nd3 {[%clk 00:07:26]} {[%emt 00:02:22]} 37.
Be3 {[%clk 00:08:29]} {[%emt 00:01:09]} Rd5 {[%clk 00:07:42]} {[%emt 00:00:17]}
38. Rf6 {[%clk 00:08:40]} {[%emt 00:00:19]} Nc5 {[%clk 00:07:56]} {[%emt
00:00:16]} 39. f3 {[%clk 00:02:35]} {[%emt 00:06:32]} Nd7 {[%clk 00:08:04]}
{[%emt 00:00:25]} 40. Rf7 {[%clk 00:02:20]} {[%emt 00:00:44]} Kc4 {[%clk
00:08:09]} {[%emt 00:00:26]} 41. h5 {[%clk 00:01:15]} {[%emt 00:01:32]} Rd1+
{[%clk 00:29:06]} {[%emt 00:09:35]} 42. Kh2 {[%clk 00:30:43]} {[%emt 00:01:03]}
Re1 {[%clk 00:29:01]} {[%emt 00:00:35]} 43. Bf4 {[%clk 00:28:47]} {[%emt
00:02:24]} Ne5 {[%clk 00:29:03]} {[%emt 00:00:30]} 44. Rxf5 {[%clk 00:28:30]}
{[%emt 00:00:47]} Nd3 {[%clk 00:28:55]} {[%emt 00:00:38]} 45. h6 {[%clk
00:24:14]} {[%emt 00:04:43]} Re7 {[%clk 00:28:46]} {[%emt 00:00:42]} 46. g4
{[%clk 00:22:49]} {[%emt 00:01:52]} b5 {[%clk 00:28:43]} {[%emt 00:00:36]} 47.
g5 {[%clk 00:18:21]} {[%emt 00:04:57]} Re3 {[%emt 00:01:24]} 1-0

[Event "Masters Tournament (MTO)"]
[Site "Biel, Switzerland"]
[Date "2026.07.22"]
[Round "9.37"]
[White "Celis, Joel"]
[Black "Fattori Dittmar, Luca"]
[Result "1/2-1/2"]
[TimeControl "100+30+30sec/move"]
[WhiteTitle "-"]
[BlackTitle "-"]
[WhiteFideId "15400212"]
[BlackFideId "34678883"]
[WhiteElo "1981"]
[BlackElo "1840"]

1. Nf3 {[%clk 01:40:57]} {[%emt 00:00:03]} d5 {[%clk 01:40:42]} {[%emt
00:00:18]} 2. e3 {[%clk 01:41:19]} {[%emt 00:00:08]} Nf6 {[%clk 01:40:49]}
{[%emt 00:00:24]} 3. b3 {[%clk 01:40:03]} {[%emt 00:01:47]} g6 {[%clk
01:41:01]} {[%emt 00:00:17]} 4. Bb2 {[%clk 01:40:26]} {[%emt 00:00:07]} Bg7
{[%clk 01:41:27]} {[%emt 00:00:03]} 5. Be2 {[%clk 01:40:49]} {[%emt 00:00:07]}
O-O {[%clk 01:41:44]} {[%emt 00:00:14]} 6. O-O {[%clk 01:41:14]} {[%emt
00:00:05]} b6 {[%clk 01:39:55]} {[%emt 00:02:19]} 7. d4 {[%clk 01:39:35]}
{[%emt 00:02:08]} Bb7 {[%clk 01:38:39]} {[%emt 00:01:47]} 8. Nbd2 {[%clk
01:38:53]} {[%emt 00:01:12]} Nbd7 {[%clk 01:38:55]} {[%emt 00:00:14]} 9. Re1
{[%clk 01:33:31]} {[%emt 00:05:52]} Ne4 {[%clk 01:37:47]} {[%emt 00:01:38]} 10.
Nxe4 {[%clk 01:31:39]} {[%emt 00:02:22]} dxe4 {[%clk 01:38:12]} {[%emt
00:00:05]} 11. Nd2 {[%clk 01:31:56]} {[%emt 00:00:13]} e5 {[%clk 01:36:27]}
{[%emt 00:02:15]} 12. Nc4 {[%clk 01:21:51]} {[%emt 00:10:35]} Qg5 {[%clk
01:31:25]} {[%emt 00:05:32]} 13. c3 {[%clk 00:55:50]} {[%emt 00:26:31]} exd4
{[%clk 01:31:11]} {[%emt 00:00:42]} 14. cxd4 {[%clk 00:54:37]} {[%emt
00:01:44]} Bd5 {[%clk 01:22:20]} {[%emt 00:09:20]} 15. f4 {[%clk 00:39:46]}
{[%emt 00:15:22]} Qd8 {[%clk 01:14:43]} {[%emt 00:08:08]} 16. Qd2 {[%clk
00:36:09]} {[%emt 00:04:07]} Re8 {[%clk 01:09:53]} {[%emt 00:05:18]} 17. g3
{[%clk 00:31:13]} {[%emt 00:05:27]} a5 {[%clk 01:04:07]} {[%emt 00:06:16]} 18.
a4 {[%clk 00:29:47]} {[%emt 00:01:56]} Bf8 {[%clk 01:04:18]} {[%emt 00:00:19]}
19. Red1 {[%clk 00:26:56]} {[%emt 00:03:21]} Nb8 {[%clk 01:02:27]} {[%emt
00:02:21]} 20. Ba3 {[%clk 00:20:14]} {[%emt 00:07:13]} Bxa3 {[%clk 01:02:44]}
{[%emt 00:00:13]} 21. Rxa3 {[%clk 00:20:26]} {[%emt 00:00:18]} Nc6 {[%clk
01:01:09]} {[%emt 00:02:04]} 22. Raa1 {[%clk 00:19:57]} {[%emt 00:00:59]} Nb4
{[%clk 01:01:05]} {[%emt 00:00:34]} 23. Rac1 {[%clk 00:19:18]} {[%emt
00:01:10]} c6 {[%clk 01:00:55]} {[%emt 00:00:39]} 24. Qb2 {[%clk 00:16:48]}
{[%emt 00:03:00]} Kg7 {[%clk 00:57:15]} {[%emt 00:04:10]} 25. Rb1 {[%clk
00:15:31]} {[%emt 00:01:45]} f6 {[%clk 00:56:47]} {[%emt 00:01:01]} 26. Rf1
{[%clk 00:14:48]} {[%emt 00:01:12]} Be6 {[%clk 00:54:59]} {[%emt 00:02:18]} 27.
Qd2 {[%clk 00:13:23]} {[%emt 00:01:56]} Rb8 {[%clk 00:54:27]} {[%emt 00:01:02]}
28. Na3 {[%clk 00:12:56]} {[%emt 00:00:56]} Qd6 {[%clk 00:52:59]} {[%emt
00:01:56]} 29. Nc2 {[%clk 00:11:46]} {[%emt 00:01:40]} Nd5 {[%clk 00:52:28]}
{[%emt 00:01:03]} 30. Rfc1 {[%clk 00:10:18]} {[%emt 00:01:59]} Rec8 {[%clk
00:50:19]} {[%emt 00:02:39]} 31. Ba6 {[%clk 00:08:35]} {[%emt 00:02:12]} Rc7
{[%clk 00:50:40]} {[%emt 00:00:09]} 32. Bc4 {[%clk 00:08:48]} {[%emt 00:00:17]}
b5 {[%clk 00:41:49]} {[%emt 00:09:21]} 33. Bxd5 {[%clk 00:08:31]} {[%emt
00:00:47]} cxd5 {[%clk 00:40:47]} {[%emt 00:01:32]} 34. axb5 {[%clk 00:06:39]}
{[%emt 00:02:22]} Rxb5 {[%clk 00:41:07]} {[%emt 00:00:09]} 35. Na3 {[%clk
00:05:51]} {[%emt 00:01:19]} Rxc1+ {[%clk 00:40:44]} {[%emt 00:00:53]} 36. Qxc1
{[%clk 00:06:14]} {[%emt 00:00:07]} Rb6 {[%clk 00:39:56]} {[%emt 00:01:17]} 37.
Qc5 {[%clk 00:04:23]} {[%emt 00:02:22]} Qb8 {[%clk 00:27:02]} {[%emt 00:13:24]}
38. Qc3 {[%clk 00:03:03]} {[%emt 00:01:49]} Rb7 {[%clk 00:24:04]} {[%emt
00:03:29]} 39. Kf2 {[%clk 00:02:08]} {[%emt 00:01:25]} Bg4 {[%clk 00:22:44]}
{[%emt 00:01:51]} 40. Rb2 {[%clk 00:01:36]} {[%emt 00:01:02]} Qc7 {[%clk
00:18:10]} {[%emt 00:05:03]} 41. Nb1 {[%clk 00:12:43]} {[%emt 00:19:23]} Qb6
{[%clk 00:40:57]} {[%emt 00:07:43]} 42. Qc1 {[%clk 00:06:26]} {[%emt 00:06:47]}
a4 {[%clk 00:35:26]} {[%emt 00:06:01]} 43. b4 {[%clk 00:06:42]} {[%emt
00:00:14]} Rc7 {[%clk 00:35:49]} {[%emt 00:00:08]} 44. Qd2 {[%clk 00:06:11]}
{[%emt 00:01:01]} Qb5 {[%clk 00:27:47]} {[%emt 00:08:32]} 45. Na3 {[%clk
00:01:13]} {[%emt 00:05:28]} Qd3 {[%clk 00:28:10]} {[%emt 00:00:07]} 46. Qxd3
{[%clk 00:00:56]} {[%emt 00:00:47]} exd3 {[%clk 00:28:36]} {[%emt 00:00:03]} 47.
Ke1 {[%clk 00:00:35]} {[%emt 00:00:51]} Rc1+ {[%clk 00:25:31]} {[%emt
00:03:35]} 48. Kd2 {[%clk 00:00:58]} {[%emt 00:00:07]} Ra1 {[%clk 00:25:29]}
{[%emt 00:00:32]} 49. h3 {[%clk 00:00:57]} {[%emt 00:00:31]} Bf3 {[%clk
00:25:19]} {[%emt 00:00:40]} 50. b5 {[%clk 00:01:00]} {[%emt 00:00:28]} Rd1+
{[%clk 00:19:33]} {[%emt 00:06:15]} 51. Kc3 {[%clk 00:01:04]} {[%emt 00:00:25]}
Rc1+ {[%clk 00:17:58]} {[%emt 00:02:07]} 52. Kxd3 {[%clk 00:01:26]} {[%emt
00:00:07]} Be4+ {[%clk 00:17:21]} {[%emt 00:01:07]} 53. Kd2 {[%clk 00:01:44]}
{[%emt 00:00:13]} Rc7 {[%clk 00:17:36]} {[%emt 00:00:07]} 54. b6 {[%clk
00:01:43]} {[%emt 00:00:38]} Rb7 {[%clk 00:18:03]} {[%emt 00:00:04]} 55. Rb5
{[%clk 00:01:24]} {[%emt 00:00:49]} Kf7 {[%clk 00:18:05]} {[%emt 00:00:28]} 56.
Kc3 {[%clk 00:01:18]} {[%emt 00:00:36]} Bf5 {[%clk 00:18:17]} {[%emt 00:00:18]}
57. h4 {[%clk 00:01:37]} {[%emt 00:00:11]} Bd7 {[%clk 00:18:20]} {[%emt
00:00:26]} 58. Rb4 {[%clk 00:01:04]} {[%emt 00:01:03]} Ke7 {[%clk 00:18:25]}
{[%emt 00:00:25]} 59. Kd3 {[%clk 00:00:40]} {[%emt 00:00:54]} Bf5+ {[%clk
00:18:38]} {[%emt 00:00:17]} 60. Ke2 {[%clk 00:00:52]} {[%emt 00:00:18]} Kd6
{[%clk 00:16:34]} {[%emt 00:02:33]} 61. Nb5+ {[%clk 00:00:56]} {[%emt
00:00:27]} Kc6 {[%clk 00:16:56]} {[%emt 00:00:08]} 62. Nc3 {[%clk 00:01:14]}
{[%emt 00:00:12]} a3 {[%clk 00:16:36]} {[%emt 00:00:50]} 63. Rb3 {[%clk
00:00:43]} {[%emt 00:01:01]} h5 {[%clk 00:09:31]} {[%emt 00:07:35]} 64. Rxa3
{[%clk 00:00:48]} {[%emt 00:00:26]} Rxb6 {[%clk 00:09:57]} {[%emt 00:00:04]} 65.
Ra2 {[%clk 00:01:00]} {[%emt 00:00:18]} Kd6 {[%clk 00:08:23]} {[%emt 00:02:04]}
66. Kd2 {[%clk 00:01:19]} {[%emt 00:00:10]} Bb1 {[%clk 00:06:07]} {[%emt
00:02:47]} 67. Ra1 {[%clk 00:00:42]} {[%emt 00:01:07]} Rb2+ {[%clk 00:05:10]}
{[%emt 00:01:28]} 68. Kd1 {[%clk 00:01:04]} {[%emt 00:00:07]} Bd3 {[%clk
00:04:52]} {[%emt 00:00:42]} 69. Ra2 {[%clk 00:01:09]} {[%emt 00:00:29]} Rb3
{[%clk 00:03:49]} {[%emt 00:01:32]} 70. Kd2 {[%clk 00:01:08]} {[%emt 00:00:34]}
Bc4 {[%clk 00:04:00]} {[%emt 00:00:17]} 71. Rc2 {[%clk 00:00:56]} {[%emt
00:00:44]} Ke6 {[%clk 00:03:51]} {[%emt 00:00:40]} 72. Rc1 {[%clk 00:00:35]}
{[%emt 00:00:50]} Rb2+ {[%clk 00:04:15]} {[%emt 00:00:06]} 73. Rc2 {[%clk
00:00:59]} {[%emt 00:00:06]} Rb3 {[%clk 00:04:43]} {[%emt 00:00:02]} 74. Rc1
{[%clk 00:00:53]} {[%emt 00:00:36]} Rb2+ {[%clk 00:05:01]} {[%emt 00:00:12]} 75.
Rc2 {[%clk 00:01:11]} {[%emt 00:00:12]} Rb3 {[%clk 00:05:18]} {[%emt 00:00:13]}
76. Nd1 {[%clk 00:00:46]} {[%emt 00:00:55]} Rd3+ {[%clk 00:05:15]} {[%emt
00:00:33]} 77. Kc1 {[%clk 00:01:09]} {[%emt 00:00:07]} Ra3 {[%clk 00:03:53]}
{[%emt 00:01:28]} 78. Kb2 {[%clk 00:01:00]} {[%emt 00:01:03]} Ra2+ {[%clk
00:03:31]} {[%emt 00:00:52]} 79. Kb1 {[%clk 00:00:39]} {[%emt 00:00:50]} Ra3
{[%clk 00:02:12]} {[%emt 00:01:50]} 80. Rc3 {[%clk 00:00:57]} {[%emt 00:00:13]}
Rxc3 {[%clk 00:01:48]} {[%emt 00:00:54]} 81. Nxc3 {[%clk 00:01:21]} {[%emt
00:00:05]} Kf5 {[%clk 00:02:15]} {[%emt 00:00:04]} 82. Kc2 {[%clk 00:01:02]}
{[%emt 00:00:49]} Kg4 {[%clk 00:02:42]} {[%emt 00:00:02]} 83. Na4 {[%clk
00:00:56]} {[%emt 00:00:36]} Bb5 {[%clk 00:01:50]} {[%emt 00:01:22]} 84. Nc3
{[%clk 00:00:36]} {[%emt 00:00:50]} Bc4 {[%clk 00:01:17]} {[%emt 00:01:03]} 85.
Na4 {[%clk 00:00:52]} {[%emt 00:00:14]} Bb5 {[%clk 00:01:43]} {[%emt 00:00:04]}
86. Nc3 {[%clk 00:01:17]} {[%emt 00:00:05]} Bc6 {[%clk 00:01:03]} {[%emt
00:01:11]} 87. Ne2 {[%clk 00:01:34]} {[%emt 00:00:11]} Kf3 {[%clk 00:01:17]}
{[%emt 00:00:17]} 88. Kd2 {[%clk 00:01:49]} {[%emt 00:00:15]} Bb5 {[%clk
00:01:36]} {[%emt 00:00:12]} 89. Nc3 {[%clk 00:02:06]} {[%emt 00:00:12]}
1/2-1/2

[Event "Masters Tournament (MTO)"]
[Site "Biel, Switzerland"]
[Date "2026.07.22"]
[Round "9.38"]
[White "Jelicic, Hugo"]
[Black "Morrison, Joseph"]
[Result "1/2-1/2"]
[TimeControl "100+30+30sec/move"]
[WhiteTitle "-"]
[BlackTitle "-"]
[WhiteFideId "1349040"]
[BlackFideId "479535"]
[WhiteElo "1907"]
[BlackElo "2048"]

1. d4 {[%clk 01:40:57]} Nf6 {[%emt 00:01:38]} 2. c4 {[%clk 01:41:20]} g6 {[%clk
01:39:51]} {[%emt 00:00:08]} 3. Nc3 {[%clk 01:41:46]} {[%emt 00:00:05]} Bg7
{[%clk 01:40:07]} {[%emt 00:00:15]} 4. Nf3 {[%clk 01:41:12]} {[%emt 00:01:02]}
O-O {[%clk 01:40:06]} {[%emt 00:00:30]} 5. Bf4 {[%clk 01:40:43]} {[%emt
00:01:00]} d6 {[%clk 01:40:06]} {[%emt 00:00:31]} 6. h3 {[%clk 01:40:47]}
{[%emt 00:00:25]} Nbd7 {[%clk 01:39:46]} {[%emt 00:00:50]} 7. e3 {[%clk
01:41:05]} {[%emt 00:00:13]} c6 {[%clk 01:32:36]} {[%emt 00:07:38]} 8. Be2
{[%clk 01:40:06]} {[%emt 00:01:30]} a6 {[%clk 01:30:31]} {[%emt 00:02:35]} 9.
O-O {[%clk 01:39:28]} {[%emt 00:01:08]} b5 {[%clk 01:26:41]} {[%emt 00:04:20]}
10. b4 {[%clk 01:27:31]} {[%emt 00:12:27]} bxc4 {[%clk 01:23:21]} {[%emt
00:03:51]} 11. Bxc4 {[%clk 01:27:48]} {[%emt 00:00:12]} Bb7 {[%clk 01:22:19]}
{[%emt 00:01:32]} 12. Rb1 {[%clk 01:21:59]} {[%emt 00:06:19]} h6 {[%clk
01:14:44]} {[%emt 00:08:05]} 13. Bh2 {[%clk 01:13:41]} {[%emt 00:08:47]} Nb6
{[%clk 01:13:42]} {[%emt 00:01:33]} 14. Qb3 {[%clk 01:11:14]} {[%emt 00:02:57]}
Nfd7 {[%clk 01:10:23]} {[%emt 00:03:49]} 15. Rfd1 {[%clk 01:07:43]} {[%emt
00:04:02]} Rc8 {[%clk 01:03:11]} {[%emt 00:07:42]} 16. Be2 {[%clk 01:01:56]}
{[%emt 00:06:15]} Kh7 {[%clk 00:53:01]} {[%emt 00:10:41]} 17. a4 {[%clk
01:00:41]} {[%emt 00:01:45]} f5 {[%clk 00:41:12]} {[%emt 00:12:18]} 18. Rbc1
{[%clk 00:59:20]} {[%emt 00:01:51]} Qe8 {[%clk 00:32:17]} {[%emt 00:09:25]} 19.
a5 {[%clk 00:57:00]} {[%emt 00:02:51]} Na8 {[%clk 00:32:08]} {[%emt 00:00:36]}
20. d5 {[%clk 00:56:37]} {[%emt 00:00:56]} cxd5 {[%clk 00:24:19]} {[%emt
00:08:19]} 21. Nxd5 {[%clk 00:56:22]} {[%emt 00:00:45]} e5 {[%clk 00:19:53]}
{[%emt 00:04:56]} 22. Nd2 {[%clk 00:42:59]} {[%emt 00:13:53]} Qe6 {[%clk
00:18:22]} {[%emt 00:02:00]} 23. Rxc8 {[%clk 00:36:17]} Rxc8 {[%clk 00:17:41]}
{[%emt 00:08:24]} 24. e4 {[%clk 00:36:25]} {[%emt 00:00:22]} Nf6 {[%clk
00:14:59]} {[%emt 00:03:13]} 25. Bc4 {[%clk 00:25:47]} {[%emt 00:11:08]} Nxd5
{[%clk 00:10:07]} {[%emt 00:05:20]} 26. exd5 {[%clk 00:26:16]} {[%emt
00:00:02]} Qd7 {[%clk 00:09:01]} {[%emt 00:01:37]} 27. f3 {[%clk 00:17:59]}
{[%emt 00:08:46]} Nc7 {[%clk 00:07:20]} {[%emt 00:02:12]} 28. Bg3 {[%clk
00:16:53]} {[%emt 00:01:35]} Rb8 {[%clk 00:04:42]} {[%emt 00:03:08]} 29. Bf2
{[%clk 00:15:13]} {[%emt 00:02:10]} Bc8 {[%clk 00:04:03]} {[%emt 00:01:08]} 30.
Ba7 {[%clk 00:14:40]} {[%emt 00:01:04]} Rb7 {[%clk 00:03:45]} {[%emt 00:00:47]}
31. Bb6 {[%clk 00:15:08]} {[%emt 00:00:03]} Rb8 {[%clk 00:03:45]} {[%emt
00:00:30]} 32. Rc1 {[%clk 00:12:45]} {[%emt 00:02:53]} Bf6 {[%clk 00:02:27]}
{[%emt 00:01:48]} 33. Rc2 {[%clk 00:12:27]} {[%emt 00:00:47]} Na8 {[%clk
00:02:39]} {[%emt 00:00:19]} 34. Bf2 {[%clk 00:11:06]} {[%emt 00:01:50]} Bd8
{[%clk 00:03:07]} {[%emt 00:00:04]} 35. Qc3 {[%clk 00:09:44]} {[%emt 00:01:51]}
Qb7 {[%clk 00:03:16]} {[%emt 00:00:20]} 36. Bf1 {[%clk 00:06:04]} {[%emt
00:04:11]} Nc7 {[%clk 00:00:51]} {[%emt 00:02:55]} 37. Qc6 {[%clk 00:04:37]}
{[%emt 00:01:57]} Nxd5 {[%clk 00:00:40]} {[%emt 00:00:41]} 38. Qxd6 {[%clk
00:03:06]} {[%emt 00:02:01]} Nxb4 {[%clk 00:00:50]} {[%emt 00:00:20]} 39. Rb2
{[%clk 00:01:52]} {[%emt 00:01:44]} Qc7 {[%clk 00:00:45]} {[%emt 00:00:35]} 40.
Bc5 {[%clk 00:00:57]} {[%emt 00:01:25]} Nc6 {[%clk 00:00:36]} {[%emt 00:00:39]}
41. Rxb8 {[%clk 00:13:54]} {[%emt 00:17:32]} Nxb8 {[%clk 00:30:13]} {[%emt
00:00:53]} 42. Qf8 {[%clk 00:13:55]} {[%emt 00:00:29]} Nc6 {[%clk 00:24:28]}
{[%emt 00:06:15]} 43. Bc4 {[%clk 00:03:24]} {[%emt 00:11:02]} Qg7 {[%clk
00:24:12]} {[%emt 00:00:46]} 44. Qd6 {[%clk 00:03:44]} {[%emt 00:00:09]} Qd7
{[%clk 00:16:32]} {[%emt 00:08:10]} 45. Qf8 {[%clk 00:04:07]} {[%emt 00:00:08]}
Qg7 {[%clk 00:16:05]} {[%emt 00:00:56]} 46. Qd6 {[%clk 00:04:36]} {[%emt
00:00:02]} Qd7 {[%clk 00:15:51]} {[%emt 00:00:44]} 47. Qxd7+ {[%clk 00:00:45]}
{[%emt 00:04:21]} Bxd7 {[%clk 00:16:16]} {[%emt 00:00:05]} 48. Bb6 {[%clk
00:01:13]} {[%emt 00:00:02]} Bxb6+ {[%clk 00:07:31]} {[%emt 00:09:16]} 49. axb6
{[%clk 00:01:42]} Nb8 {[%clk 00:05:05]} {[%emt 00:02:55]} 50. Nb3 {[%clk
00:01:59]} {[%emt 00:00:12]} Bb5 {[%clk 00:05:30]} {[%emt 00:00:06]} 51. Bd5
{[%clk 00:01:35]} {[%emt 00:00:54]} Bc6 {[%clk 00:04:33]} {[%emt 00:01:26]} 52.
Bc4 {[%clk 00:01:17]} {[%emt 00:00:48]} Bb5 {[%clk 00:05:03]} 53. Bd5 {[%clk
00:01:02]} {[%emt 00:00:45]} Bc6 {[%clk 00:05:30]} {[%emt 00:00:03]} 54. Bc4
{[%clk 00:01:30]} {[%emt 00:00:03]} 1/2-1/2